bitfinex-derivatives/quotes_BTCF0:USTF0_20251028
["timestamp","ask_amount","ask_price","bid_price","bid_amount"]
[1761611964814,0.2522589,114160.0,114150.0,0.05991]
[1761611965016,0.44571019,114160.0,114150.0,0.04694]
[1761611965217,0.30135051,114160.0,114150.0,0.04694]
[1761611965422,0.30135051,114160.0,114150.0,0.19895968]
[1761611965729,0.30135051,114160.0,114150.0,0.21192968]
[1761611966025,0.30135051,114160.0,114150.0,0.04694]
[1761611966624,0.30135051,114160.0,114150.0,0.19895968]
[1761611966819,0.32135051,114160.0,114150.0,0.19895968]
[1761611967020,0.30135051,114160.0,114150.0,0.21192968]
[1761611968028,0.30135051,114160.0,114150.0,0.05991]
[1761611968226,0.30135051,114160.0,114150.0,0.21192968]
[1761611969728,0.29369051,114160.0,114150.0,0.21192968]
[1761611971731,0.28586265,114160.0,114150.0,0.21192968]
[1761611972826,0.28586265,114160.0,114150.0,0.003]
[1761611972827,0.66554233,114160.0,114150.0,0.003]
[1761611973027,1.64554233,114160.0,114150.0,0.003]
[1761611973227,1.62554233,114160.0,114150.0,0.003]
[1761611973529,1.64554233,114160.0,114150.0,0.003]
[1761611973826,1.47352265,114160.0,114150.0,0.02419]
[1761611974033,0.81352265,114160.0,114150.0,0.21116968]
[1761611975528,0.81352265,114160.0,114150.0,0.19836968]
[1761611976433,0.76637524,114160.0,114150.0,0.19836968]
[1761611978834,0.76637524,114160.0,114150.0,0.04635]
[1761611979034,1.36637524,114160.0,114150.0,0.19836968]
[1761611979236,1.36637524,114160.0,114150.0,0.04635]
[1761611979434,1.36637524,114160.0,114150.0,0.19836968]
[1761611980237,1.36637524,114160.0,114150.0,0.04635]
[1761611980430,1.36637524,114160.0,114150.0,0.19836968]
[1761611981737,1.40143361,114160.0,114150.0,0.19836968]
[1761611983029,0.13175393,114160.0,114150.0,0.21116968]
[1761611983330,0.230292,114160.0,114150.0,0.21116968]
[1761611991639,0.20669556,114160.0,114150.0,0.21116968]
[1761611994535,0.23815749,114160.0,114150.0,0.21116968]
[1761611998144,0.10815749,114160.0,114150.0,0.21116968]
[1761611998344,0.13177712,114160.0,114150.0,0.21116968]
[1761611999643,0.10031519,114160.0,114150.0,0.21116968]
[1761612000147,0.15177712,114160.0,114150.0,0.05915]
[1761612000339,0.13177712,114160.0,114150.0,0.21116968]
[1761612000739,0.3037968,114160.0,114150.0,0.21116968]
[1761612001744,0.12031519,114160.0,114150.0,0.21116968]
[1761612002849,0.27233487,114160.0,114150.0,0.21116968]
[1761612003250,0.3037968,114160.0,114150.0,0.21116968]
[1761612004051,0.3237968,114160.0,114150.0,0.21116968]
[1761612004247,0.15177712,114160.0,114150.0,0.21116968]
[1761612004552,0.3037968,114160.0,114150.0,0.21116968]
[1761612008548,0.15177712,114160.0,114150.0,0.21116968]
[1761612008754,0.2837968,114160.0,114150.0,0.21116968]
[1761612008953,0.13177712,114160.0,114150.0,0.21116968]
[1761612009161,0.25233487,114160.0,114150.0,0.21116968]
[1761612010859,0.27233487,114160.0,114150.0,0.05915]
[1761612011152,0.49356685,114160.0,114150.0,0.02419]
[1761612011354,0.36154717,114160.0,114150.0,0.02419]
[1761612011964,0.36154717,114160.0,114150.0,0.04728]
[1761612012457,0.51356685,114160.0,114150.0,0.04728]
[1761612013347,0.36154717,114160.0,114150.0,0.04728]
[1761612015159,0.51356685,114160.0,114150.0,0.04728]
[1761612015657,0.36154717,114160.0,114150.0,0.04728]
[1761612016362,0.49079129,114160.0,114150.0,0.04728]
[1761612016563,0.51344475,114160.0,114150.0,0.04728]
[1761612016863,0.36142507,114160.0,114150.0,0.04728]
[1761612017366,1.00344475,114160.0,114150.0,0.003]
[1761612018063,1.00344475,114160.0,114150.0,0.04869]
[1761612018464,0.85142507,114160.0,114150.0,0.04869]
[1761612020261,0.29142507,114160.0,114150.0,0.04869]
[1761612020461,1.04344475,114160.0,114150.0,0.04869]
[1761612021562,1.04344475,114160.0,114150.0,0.003]
[1761612022868,0.04536,114130.0,114120.0,0.05968]
[1761612023060,0.22769314,114130.0,114120.0,0.04569]
[1761612023553,0.22769314,114130.0,114120.0,0.05865]
[1761612023754,0.08436722,114130.0,114120.0,0.05865]
[1761612023967,0.3064968,114130.0,114120.0,0.04569]
[1761612024165,0.33009696,114130.0,114120.0,0.04569]
[1761612024362,0.3094968,114130.0,114120.0,0.05069]
[1761612024562,0.36456384,114130.0,114120.0,0.05069]
[1761612027265,0.33309696,114130.0,114120.0,0.05069]
[1761612027860,0.33309696,114130.0,114120.0,0.005]
[1761612028167,0.33309696,114130.0,114120.0,0.0276]
[1761612028366,0.33309696,114130.0,114120.0,0.04946]
[1761612031670,0.3094968,114130.0,114120.0,0.04946]
[1761612034271,0.15736722,114130.0,114120.0,0.04946]
[1761612034472,0.3094968,114130.0,114120.0,0.04946]
[1761612035277,0.17736722,114130.0,114120.0,0.04946]
[1761612035482,0.3294968,114130.0,114120.0,0.0276]
[1761612035773,0.8094968,114130.0,114120.0,0.0276]
[1761612036575,0.8094968,114130.0,114120.0,0.005]
[1761612037477,0.05534,114110.0,114100.0,0.04312]
[1761612037670,0.26746958,114110.0,114100.0,0.04312]
[1761612038074,0.29036772,114110.0,114100.0,0.04312]
[1761612038375,0.11534,114110.0,114100.0,0.04312]
[1761612038877,0.13823488,114110.0,114100.0,0.04312]
[1761612039072,0.14123488,114110.0,114100.0,0.05212]
[1761612039975,0.29336446,114110.0,114100.0,0.05212]
[1761612040276,0.14123488,114110.0,114100.0,0.05212]
[1761612040476,0.86283488,114110.0,114100.0,0.05212]
[1761612041078,0.85983488,114110.0,114100.0,0.04312]
[1761612041278,0.85983488,114110.0,114100.0,0.04612]
[1761612041279,0.86383488,114110.0,114100.0,0.04612]
[1761612042778,1.03596446,114110.0,114100.0,0.003]
[1761612043181,1.01596446,114110.0,114100.0,0.003]
[1761612043580,0.86383488,114110.0,114100.0,0.04612]
[1761612044481,0.86383488,114110.0,114100.0,0.02426]
[1761612044782,1.03596446,114110.0,114100.0,0.003]
[1761612045277,1.52596446,114110.0,114100.0,0.003]
[1761612045783,0.04466,114090.0,114080.0,0.20820958]
[1761612045983,0.76626,114090.0,114080.0,0.20820958]
[1761612046483,0.76626,114090.0,114080.0,0.05608]
[1761612046784,0.76626,114090.0,114080.0,0.20920958]
[1761612047273,0.76626,114090.0,114080.0,0.05708]
[1761612047878,0.92904958,114090.0,114080.0,0.05012]
[1761612048980,0.77692,114090.0,114080.0,0.05012]
[1761612049383,0.79980344,114090.0,114080.0,0.05012]
[1761612049585,0.95193302,114090.0,114080.0,0.007]
[1761612049786,0.95193302,114090.0,114080.0,0.02826]
[1761612050084,0.79980344,114090.0,114080.0,0.05012]
[1761612050681,0.79980344,114090.0,114080.0,0.04912]
[1761612050883,0.80480344,114090.0,114080.0,0.004]
[1761612052089,0.95693302,114090.0,114080.0,0.004]
[1761612053089,0.95693302,114090.0,114080.0,0.02526]
[1761612053286,0.95693302,114090.0,114060.0,0.05607]
[1761612053287,0.04466,114070.0,114060.0,0.05607]
[1761612053586,0.76626,114070.0,114060.0,0.05607]
[1761612054187,0.77497624,114070.0,114060.0,0.05607]
[1761612054698,0.77026,114070.0,114060.0,0.21619958]
[1761612055488,0.77026,114070.0,114060.0,0.21719958]
[1761612058590,0.77026,114070.0,114060.0,0.06507]
[1761612058790,0.77026,114070.0,114060.0,0.21719958]
[1761612060189,0.77026,114070.0,114060.0,0.06507]
[1761612060390,0.77026,114070.0,114060.0,0.21719958]
[1761612061492,0.78128,114070.0,114060.0,0.03026]
[1761612061688,0.94340958,114070.0,114060.0,0.05305]
[1761612061988,0.96632377,114070.0,114060.0,0.009]
[1761612062788,0.94340958,114070.0,114060.0,0.009]
[1761612063191,0.96632418,114070.0,114060.0,0.009]
[1761612065187,1.13845376,114070.0,114060.0,0.009]
[1761612065395,0.05169,114050.0,114040.0,0.04501621]
[1761612065596,0.8362046,114050.0,114040.0,0.04501621]
[1761612065893,0.94833418,114050.0,114040.0,0.04501621]
[1761612066089,0.7962046,114050.0,114040.0,0.04501621]
[1761612066396,0.7962046,114050.0,114040.0,0.02222621]
[1761612066692,0.94833418,114050.0,114040.0,8.621e-05]
[1761612067094,0.94833418,114050.0,114040.0,0.02286621]
[1761612067297,0.7962046,114050.0,114040.0,0.04616621]
[1761612067996,0.8012046,114050.0,114040.0,0.04616621]
[1761612068697,0.8012046,114050.0,114040.0,0.04716621]
[1761612069087,1.04683716,114050.0,114040.0,0.00108621]
[1761612069292,0.04506,114020.0,114010.0,0.05975]
[1761612069491,0.79959663,114020.0,114010.0,0.04608]
[1761612070197,0.79968284,114020.0,114010.0,0.04608]
[1761612070594,0.78478621,114020.0,114010.0,0.04608]
[1761612070795,0.82337746,114020.0,114010.0,0.05108]
[1761612070996,0.81537746,114020.0,114010.0,0.05108]
[1761612071196,0.99538962,114020.0,114010.0,0.05108]
[1761612071396,0.99538962,114020.0,114010.0,0.02278]
[1761612071698,0.99538962,114020.0,114010.0,0.02378]
[1761612072095,0.99538962,114020.0,114010.0,0.04708]
[1761612072594,0.84326004,114020.0,114010.0,0.04708]
[1761612072905,0.99538962,114020.0,114010.0,0.04708]
[1761612073591,0.79462879,114020.0,114010.0,0.21287958]
[1761612075599,0.79462879,114020.0,114010.0,0.06075]
[1761612075800,0.79462879,114020.0,114010.0,0.21287958]
[1761612076902,0.79462879,114020.0,114010.0,0.06075]
[1761612077199,0.79462879,114020.0,114010.0,0.21287958]
[1761612078801,0.79462879,114020.0,114010.0,0.06075]
[1761612079100,0.79462879,114020.0,114010.0,0.21287958]
[1761612079999,0.79462879,114020.0,114010.0,0.06075]
[1761612080200,0.79462879,114020.0,114010.0,0.21287958]
[1761612080802,0.79462879,114020.0,114010.0,0.06075]
[1761612081001,0.80564879,114020.0,114010.0,0.06075]
[1761612081201,0.99777837,114020.0,114010.0,0.02378]
[1761612081501,0.99777837,114020.0,114010.0,0.001]
[1761612081702,0.99777837,114020.0,114010.0,0.02378]
[1761612083601,0.99777837,114020.0,114010.0,0.001]
[1761612084698,0.95777837,114020.0,114010.0,0.001]
[1761612085702,1.11049813,114020.0,114010.0,0.001]
[1761612087404,0.95807346,114020.0,114010.0,0.19950467]
[1761612087704,1.14049813,114020.0,114010.0,0.001]
[1761612088297,0.83564879,114020.0,114010.0,0.02378]
[1761612088498,0.95807346,114020.0,114010.0,0.19970467]
[1761612091212,0.98157644,114020.0,114010.0,0.19970467]
[1761612091414,0.95807346,114020.0,114010.0,0.19970467]
[1761612092103,0.95807346,114020.0,114010.0,0.04728]
[1761612092308,0.98157644,114020.0,114010.0,0.19970467]
[1761612093912,0.98157644,114020.0,114010.0,0.15342467]
[1761612094114,0.98157644,114020.0,114010.0,0.04728]
[1761612094412,0.98157644,114020.0,114010.0,0.19970467]
[1761612095313,1.01304332,114020.0,114010.0,0.19970467]
[1761612095712,1.16046799,114020.0,114010.0,0.04728]
[1761612095911,1.16046799,114020.0,114010.0,0.001]
[1761612095912,1.21946799,114020.0,114010.0,0.001]
[1761612096216,1.21169846,114020.0,114010.0,0.001]
[1761612096817,0.04414,114000.0,113990.0,0.21237467]
[1761612097013,0.94104725,114000.0,113990.0,0.21237467]
[1761612098012,0.98104725,114000.0,113990.0,0.04628]
[1761612098316,0.95206725,114000.0,113990.0,0.19870467]
[1761612098918,0.95206725,114000.0,113990.0,0.21240467]
[1761612099211,0.98463642,114000.0,113990.0,0.21240467]
[1761612099517,0.97361642,114000.0,113990.0,0.21240467]
[1761612100318,0.95004725,114000.0,113990.0,0.21240467]
[1761612102516,0.98463642,114000.0,113990.0,0.19970467]
[1761612104720,0.97361642,114000.0,113990.0,0.30013277]
[1761612106723,0.79762258,114000.0,113990.0,0.30013277]
[1761612109820,0.79762258,114000.0,113990.0,0.1477081]
[1761612110019,0.79762258,114000.0,113990.0,0.30013277]
[1761612116534,0.79762258,114000.0,113990.0,0.45255744]
[1761612116835,0.73864839,114000.0,113990.0,0.45255744]
[1761612117035,0.76047839,114000.0,113990.0,0.45255744]
[1761612117442,0.7306,114000.0,113990.0,0.45255744]
[1761612118340,0.7306,114000.0,113990.0,0.59965744]
[1761612120943,0.7306,114000.0,113990.0,0.75208211]
[1761612121151,0.36088621,114020.0,114010.0,0.1449527]
[1761612121447,0.36088621,114020.0,114010.0,0.44980204]
[1761612121840,0.40573621,114020.0,114010.0,0.44980204]
[1761612122140,0.40573621,114020.0,114010.0,0.1449527]
[1761612122447,0.40573621,114020.0,114010.0,0.44980204]
[1761612122641,0.39750621,114020.0,114010.0,0.44980204]
[1761612123447,0.42073621,114020.0,114010.0,0.44980204]
[1761612123840,0.42073621,114020.0,114010.0,0.29737737]
[1761612124849,0.40973621,114020.0,114010.0,0.30037737]
[1761612127349,0.40973621,114020.0,114010.0,0.90037737]
[1761612127853,0.36488621,114020.0,114010.0,1.05280204]
[1761612128047,0.36488621,114020.0,114010.0,0.45280204]
[1761612128546,0.00408621,114020.0,114010.0,0.45280204]
[1761612129149,0.38227,114030.0,114020.0,0.143885]
[1761612129350,0.38227,114030.0,114020.0,0.44873434]
[1761612130747,0.4047,114030.0,114020.0,0.45763321]
[1761612131152,0.4047,114030.0,114020.0,0.143885]
[1761612131347,0.4087,114030.0,114020.0,0.06118]
[1761612131545,0.4087,114030.0,114020.0,0.21360467]
[1761612131746,0.4087,114030.0,114020.0,0.30130967]
[1761612132352,0.4047,114030.0,114020.0,0.44873434]
[1761612132552,0.4087,114030.0,114020.0,0.45473434]
[1761612132752,0.4087,114030.0,114020.0,0.149885]
[1761612132956,0.56112467,114030.0,114020.0,0.04937]
[1761612133153,0.56112467,114030.0,114020.0,0.20179467]
[1761612133352,0.57214467,114030.0,114020.0,0.20179467]
[1761612133950,0.56112467,114030.0,114020.0,0.21460467]
[1761612134257,0.4087,114030.0,114020.0,0.36702934]
[1761612135653,0.56112467,114030.0,114020.0,0.21460467]
[1761612136354,0.4087,114030.0,114020.0,0.36702934]
[1761612138158,0.4087,114030.0,114020.0,0.45473434]
[1761612138659,0.4087,114030.0,114020.0,0.60183434]
[1761612143961,0.4087,114030.0,114020.0,0.51412934]
[1761612144956,0.4087,114030.0,114020.0,0.60183434]
[1761612145763,0.4087,114030.0,114020.0,0.44933759]
[1761612149062,0.4087,114030.0,114020.0,0.36163259]
[1761612149263,0.4087,114030.0,114020.0,0.20928]
[1761612150468,0.60400697,114030.0,114020.0,0.1531]
[1761612150659,0.60400697,114030.0,114020.0,0.006]
[1761612150860,1.22757614,114030.0,114010.0,0.1471]
[1761612151154,0.56556259,114020.0,114010.0,0.1471]
[1761612151356,0.56556259,114020.0,114010.0,0.17014]
[1761612151357,0.58851697,114020.0,114010.0,0.17014]
[1761612151558,0.58851697,114020.0,114010.0,0.19287]
[1761612152171,0.43616438,114020.0,114010.0,0.20187]
[1761612152765,0.44116438,114020.0,114010.0,0.20287]
[1761612153168,0.44116438,114020.0,114010.0,0.1571]
[1761612153358,0.59351697,114020.0,114010.0,0.1571]
[1761612153767,0.59351697,114020.0,114010.0,0.1581]
[1761612155066,0.59351697,114020.0,114010.0,0.18114]
[1761612156266,0.59351697,114020.0,114010.0,0.011]
[1761612158464,0.0068,114010.0,113990.0,0.05847]
[1761612158672,0.92972259,114000.0,113990.0,0.04577]
[1761612158860,0.95972259,114000.0,113980.0,0.05968]
[1761612159060,0.40555,113990.0,113980.0,0.05968]
[1761612160772,0.40555,113990.0,113980.0,0.21203259]
[1761612161370,0.40555,113990.0,113980.0,0.21703259]
[1761612161568,0.41355,113990.0,113980.0,0.21703259]
[1761612161972,0.41355,113990.0,113980.0,0.21203259]
[1761612162172,0.41155,113990.0,113980.0,0.21303259]
[1761612162673,0.41155,113990.0,113980.0,0.06068]
[1761612162873,0.41155,113990.0,113980.0,0.21303259]
[1761612167966,0.38957,113990.0,113980.0,0.30076839]
[1761612168169,0.3668,113990.0,113980.0,0.30076839]
[1761612168369,0.38957,113990.0,113980.0,0.30076839]
[1761612168969,0.41155,113990.0,113980.0,0.30076839]
[1761612175686,0.41155,113990.0,113980.0,0.30076829]
[1761612176090,0.41155,113990.0,113980.0,0.21303259]
[1761612177593,0.41155,113990.0,113980.0,0.30076839]
[1761612179694,0.41155,113990.0,113980.0,0.44786839]
[1761612183297,0.41155,113990.0,113980.0,0.36013259]
[1761612184694,0.41155,113990.0,113980.0,0.20778]
[1761612184898,0.41155,113990.0,113980.0,0.36013259]
[1761612185398,0.41155,113990.0,113980.0,0.44786829]
[1761612185598,0.41155,113990.0,113980.0,0.28736829]
[1761612187901,0.41155,113990.0,113980.0,0.19963259]
[1761612191401,0.41155,113990.0,113980.0,0.34673259]
[1761612194104,0.41155,113990.0,113980.0,0.40982415]
[1761612195904,0.41155,113990.0,113980.0,0.34673259]
[1761612196802,0.41155,113990.0,113980.0,0.43446829]
[1761612197005,0.41155,113990.0,113980.0,0.49755985]
[1761612199509,0.41155,113990.0,113980.0,0.40982415]
[1761612200800,0.41889,113990.0,113980.0,0.10986156]
[1761612201202,0.44186455,113990.0,113980.0,0.04677]
[1761612202206,0.59421714,113990.0,113980.0,0.001]
[1761612202708,0.62421714,113990.0,113980.0,0.001]
[1761612202911,0.05366,113980.0,113970.0,0.19109]
[1761612203108,0.41446,113980.0,113970.0,0.19109]
[1761612203303,0.40590103,113980.0,113970.0,0.19109]
[1761612204710,0.40590103,113980.0,113970.0,0.19209]
[1761612205511,0.41190103,113980.0,113970.0,0.19209]
[1761612206019,0.41190103,113980.0,113970.0,0.04499]
[1761612206210,0.41190103,113980.0,113970.0,0.05817]
[1761612206705,0.41190103,113980.0,113970.0,0.21052259]
[1761612207709,0.56439545,113980.0,113970.0,0.21066442]
[1761612207908,0.41190103,113980.0,113970.0,0.21066442]
[1761612208112,0.56439545,113980.0,113970.0,0.21066442]
[1761612208812,0.41190103,113980.0,113970.0,0.21066442]
[1761612210306,0.56439545,113980.0,113970.0,0.21066442]
[1761612212913,0.56439545,113980.0,113970.0,0.05817]
[1761612213213,0.56439545,113980.0,113970.0,0.21066442]
[1761612216410,0.41190103,113980.0,113970.0,0.21066442]
[1761612216611,0.56439545,113980.0,113970.0,0.21066442]
[1761612217309,0.92519545,113980.0,113970.0,0.21066442]
[1761612217508,0.74953103,113980.0,113970.0,0.36315884]
[1761612217710,0.77221103,113980.0,113970.0,0.35776442]
[1761612217912,0.77221103,113980.0,113970.0,0.51025884]
[1761612218112,0.77221103,113980.0,113970.0,0.35776442]
[1761612218504,0.77221103,113980.0,113970.0,0.44550792]
[1761612219312,0.77221103,113980.0,113970.0,0.59800234]
[1761612220217,0.7276,113980.0,113970.0,0.59800234]
[1761612220814,0.74991,113980.0,113970.0,0.59800234]
[1761612222018,0.77259,113980.0,113970.0,0.59800234]
[1761612222615,0.75028,113980.0,113970.0,0.59800234]
[1761612222821,0.7276,113980.0,113970.0,0.59800234]
[1761612223622,0.006,113980.0,113970.0,0.59800234]
[1761612224122,0.006,113980.0,113970.0,0.2930135]
[1761612224318,0.006,113980.0,113970.0,0.59800234]
[1761612224922,0.02831,113980.0,113970.0,0.59800234]
[1761612225424,0.05099,113980.0,113970.0,0.59800234]
[1761612226521,0.006,113980.0,113970.0,0.59800234]
[1761612227022,0.006,113980.0,113970.0,0.96419676]
[1761612227224,0.006,113980.0,113970.0,0.81170234]
[1761612229720,0.3608,113990.0,113980.0,0.1226457]
[1761612229927,0.3608,113990.0,113980.0,0.60235896]
[1761612231220,0.38311,114010.0,114000.0,0.1448603]
[1761612231428,0.38311,114010.0,114000.0,0.44984914]
[1761612231613,0.40579,114010.0,114000.0,0.44984914]
[1761612232421,0.41479,114010.0,114000.0,0.44984914]
[1761612236526,0.41479,114010.0,114000.0,0.45861693]
[1761612236923,0.41479,114010.0,114000.0,0.36212884]
[1761612237221,0.41479,114010.0,114000.0,0.44984914]
[1761612240430,0.39211,114010.0,114000.0,0.44984914]
[1761612240927,0.41481,114010.0,114000.0,0.44984914]
[1761612241122,0.009,114010.0,114000.0,0.96314356]
[1761612242821,0.009,114010.0,114000.0,1.56314356]
[1761612243026,0.009,114010.0,114000.0,0.96314356]
[1761612243234,0.009,114010.0,114000.0,0.9718127]
[1761612243435,0.3608,114020.0,114010.0,0.1456526]
[1761612243734,0.3608,114020.0,114010.0,0.45064144]
[1761612244131,0.40672,114040.0,114030.0,0.0876973]
[1761612244338,0.40672,114040.0,114030.0,0.45062614]
[1761612245035,0.40672,114040.0,114030.0,0.21043442]
[1761612245231,0.42072,114040.0,114030.0,0.36292884]
[1761612245432,0.42072,114040.0,114030.0,0.21043442]
[1761612245936,0.41472,114040.0,114030.0,0.21043442]
[1761612246135,0.41572,114040.0,114030.0,0.21043442]
[1761612247440,0.40772,114040.0,114030.0,0.21043442]
[1761612247637,0.41272,114040.0,114030.0,0.21443442]
[1761612247939,0.41172,114040.0,114030.0,0.21443442]
[1761612248335,0.41172,114040.0,114030.0,0.36692884]
[1761612250444,0.41172,114040.0,114030.0,0.21443442]
[1761612251247,0.41172,114040.0,114030.0,0.30213172]
[1761612251453,0.41172,114040.0,114030.0,0.45462614]
[1761612252654,0.38902,114040.0,114030.0,0.45462614]
[1761612253559,0.005,114040.0,114030.0,0.45462614]
[1761612253754,0.3608,114050.0,114040.0,0.1468696]
[1761612254058,0.3608,114050.0,114040.0,0.60435286]
[1761612254447,0.40502,114050.0,114040.0,0.36416884]
[1761612255154,0.41002,114050.0,114040.0,0.36716884]
[1761612255848,0.3658,114050.0,114040.0,0.51966326]
[1761612256256,0.41002,114050.0,114040.0,0.36716884]
[1761612257755,0.3658,114050.0,114040.0,0.60735286]
[1761612258853,0.3658,114050.0,114040.0,0.51966326]
[1761612259152,0.41002,114050.0,114040.0,0.51966326]
[1761612259663,0.41002,114050.0,114040.0,0.36716884]
[1761612262962,0.38695,114050.0,114040.0,0.45485844]
[1761612263164,0.41002,114050.0,114040.0,0.45485844]
[1761612263962,0.41002,114050.0,114040.0,0.36716884]
[1761612264755,0.41002,114050.0,114040.0,0.60195854]
[1761612265864,0.41002,114050.0,114040.0,1.19445296]
[1761612266067,0.41002,114050.0,114040.0,1.10676326]
[1761612266256,0.41002,114050.0,114040.0,0.95426884]
[1761612268058,0.4330675,114050.0,114040.0,0.95426884]
[1761612268466,0.4330675,114050.0,114040.0,1.04195854]
[1761612268768,0.4330675,114050.0,114040.0,1.19445296]
[1761612269768,0.4330675,114050.0,114040.0,0.88922761]
[1761612269962,0.4099975,114050.0,114040.0,0.88922761]
[1761612270168,0.3658,114050.0,114040.0,0.88922761]
[1761612273365,0.35154596,114050.0,114040.0,0.88922761]
[1761612275067,0.3608,114060.0,114050.0,0.144712]
[1761612275068,0.4067,114060.0,114050.0,0.144712]
[1761612275258,0.4067,114060.0,114050.0,0.29696991]
[1761612275767,0.4067,114060.0,114050.0,0.73696991]
[1761612276264,0.4077,114060.0,114050.0,0.73696991]
[1761612276566,0.38851,114060.0,114050.0,0.90322782]
[1761612276869,0.4117,114060.0,114050.0,0.75096991]
[1761612277369,0.4077,114060.0,114050.0,0.73696991]
[1761612277570,0.4127,114060.0,114050.0,0.75796991]
[1761612278364,0.4117,114060.0,114050.0,0.76672025]
[1761612279172,0.4117,114060.0,114050.0,0.75796991]
[1761612281067,0.3658,114060.0,114050.0,0.75796991]
[1761612281575,0.4117,114060.0,114050.0,0.75796991]
[1761612282177,0.4117,114060.0,114050.0,0.90506991]
[1761612282473,0.4117,114060.0,114050.0,0.91394327]
[1761612286177,0.0509,114060.0,114050.0,0.91394327]
[1761612286378,0.4117,114060.0,114050.0,0.91394327]
[1761612291384,0.4117,114060.0,114050.0,0.81738791]
[1761612291889,0.43478287,114060.0,114050.0,0.22513]
[1761612292285,0.43478287,114060.0,114050.0,0.37738791]
[1761612293985,0.43478287,114060.0,114050.0,0.23028791]
[1761612294289,0.4117,114060.0,114050.0,0.23028791]
[1761612294676,0.43478498,114060.0,114050.0,0.23028791]
[1761612296088,0.43478498,114060.0,114050.0,0.07803]
[1761612296290,0.44122498,114060.0,114050.0,0.06536]
[1761612297390,0.44122498,114060.0,114050.0,0.21761791]
[1761612299592,0.61705206,114060.0,114050.0,0.021]
[1761612300095,0.76930997,114060.0,114050.0,0.021]
[1761612300289,0.05515,114040.0,114030.0,0.8946]
[1761612300490,0.95209459,114040.0,114030.0,0.8946]
[1761612301005,0.01286,114030.0,114010.0,0.18738791]
[1761612301197,0.40493,114020.0,114010.0,0.29662061]
[1761612301494,0.38187,114020.0,114010.0,0.29662061]
[1761612301692,0.40493,114020.0,114010.0,0.29662061]
[1761612301988,0.40493,114020.0,114010.0,0.20890791]
[1761612302182,0.38187,114020.0,114010.0,0.20890791]
[1761612302383,0.38187,114020.0,114010.0,0.21766277]
[1761612302793,0.006,114020.0,114010.0,0.32637557]
[1761612303190,0.006,114020.0,114010.0,0.68717557]
[1761612303389,0.006,114020.0,114010.0,0.68817557]
[1761612304496,0.3608,114030.0,114020.0,0.145095]
[1761612304699,0.3608,114030.0,114020.0,0.20964791]
[1761612305298,0.38187,114030.0,114020.0,0.20964791]
[1761612305591,0.3608,114030.0,114020.0,0.29735301]
[1761612306290,0.3608,114030.0,114020.0,0.20964791]
[1761612306495,0.38787,114030.0,114020.0,0.20964791]
[1761612306696,0.41095,114030.0,114020.0,0.20964791]
[1761612308992,0.006,114030.0,114020.0,0.29735301]
[1761612309192,0.006,114030.0,114020.0,0.65815301]
[1761612309389,0.006,114030.0,114020.0,0.81041092]
[1761612309595,0.006,114030.0,114020.0,0.72270582]
[1761612309995,0.006,114030.0,114020.0,0.81041092]
[1761612310191,0.006,114030.0,114020.0,0.72270582]
[1761612310588,0.0292,114030.0,114020.0,0.57044791]
[1761612310799,0.41308,114030.0,114020.0,0.20964791]
[1761612311399,0.0292,114030.0,114020.0,0.20964791]
[1761612311597,0.05228,114030.0,114020.0,0.20964791]
[1761612314198,0.05228,114030.0,114020.0,0.29735301]
[1761612314399,0.41308,114030.0,114020.0,0.29735301]
[1761612314595,0.41308,114030.0,114020.0,0.20449]
[1761612315001,0.42594,114030.0,114020.0,0.19108]
[1761612315201,0.42594,114030.0,114020.0,0.34333791]
[1761612315402,0.41308,114030.0,114020.0,0.35600791]
[1761612318800,0.41308,114030.0,114020.0,0.44371291]
[1761612320297,0.41308,114030.0,114020.0,0.20890791]
[1761612320703,0.41308,114030.0,114020.0,0.05665]
[1761612321004,0.41308,114030.0,114020.0,0.20890791]
[1761612323510,0.41308,114030.0,114020.0,0.29661291]
[1761612325103,0.41308,114030.0,114020.0,0.20890791]
[1761612326409,0.41308,114030.0,114020.0,0.29661291]
[1761612327010,0.41308,114030.0,114020.0,0.20890791]
[1761612327710,0.41308,114030.0,114020.0,0.29661291]
[1761612331713,0.41308,114030.0,114020.0,0.44901734]
[1761612331904,0.41308,114030.0,114020.0,0.51209515]
[1761612332109,0.41308,114030.0,114020.0,0.59611734]
[1761612332704,0.006,114030.0,114020.0,0.81152632]
[1761612332910,0.006,114030.0,114020.0,0.65919515]
[1761612333211,0.006,114030.0,114020.0,1.01999515]
[1761612333412,0.006,114030.0,114020.0,0.65919515]
[1761612333613,0.006,114030.0,114020.0,0.59611734]
[1761612334717,0.006,114030.0,114020.0,0.74844851]
[1761612334916,0.0279,114030.0,114020.0,0.74844851]
[1761612335413,0.0279,114030.0,114020.0,0.59611734]
[1761612335907,0.006,114030.0,114020.0,0.74844851]
[1761612336414,0.006,114030.0,114020.0,1.10924851]
[1761612336920,0.006,114030.0,114020.0,1.18799242]
[1761612339824,0.006,114030.0,114020.0,1.10924851]
[1761612341425,0.0491,114030.0,114020.0,0.652255]
[1761612341624,0.0279,114030.0,114020.0,0.95691734]
[1761612341919,0.006,114030.0,114020.0,0.95691734]
[1761612342719,0.006,114030.0,114020.0,1.10924851]
[1761612343325,0.006,114030.0,114020.0,0.74844851]
[1761612344024,0.006,114030.0,114020.0,1.10924851]
[1761612344225,0.006,114030.0,114020.0,0.74844851]
[1761612344524,0.006,114030.0,114020.0,1.10924851]
[1761612347022,0.0279,114030.0,114020.0,0.74844851]
[1761612347622,0.006,114030.0,114020.0,0.74844851]
[1761612347824,0.0491,114030.0,114020.0,0.59611734]
[1761612348021,0.0279,114030.0,114020.0,0.59611734]
[1761612348227,0.0279,114030.0,114020.0,0.74844851]
[1761612350429,0.0491,114030.0,114020.0,0.59611734]
[1761612351730,0.0279,114030.0,114020.0,0.59611734]
[1761612352133,0.0279,114030.0,114020.0,0.74844851]
[1761612352430,0.006,114030.0,114020.0,0.82719242]
[1761612352630,0.0279,114030.0,114020.0,0.82719242]
[1761612353741,0.0491,114030.0,114020.0,0.82719242]
[1761612355838,0.0491,114030.0,114020.0,0.67486125]
[1761612356137,0.0491,114030.0,114020.0,0.59611734]
[1761612358339,0.0491,114030.0,114020.0,0.67486125]
[1761612359640,0.0491,114030.0,114020.0,0.82719242]
[1761612361139,0.03484352,114030.0,114020.0,0.82719242]